fUST/lending_fUST_20250918
["ID","MTS","AMOUNT","RATE_DAILY","PERIOD"]
[385993745,1758177033280,-522.78433666,0.00023846,3]
[385993746,1758177033290,-480.0,0.00023846,3]
[385993747,1758177033299,-491.31604623,0.00023846,3]
[385993748,1758177033309,-500.0,0.00023846,2]
[385993749,1758177033318,-500.0,0.00023846,2]
[385993750,1758177033328,-500.0,0.00023846,2]
[385993751,1758177033337,-500.0,0.00023846,2]
[385993752,1758177033347,-500.0,0.00023846,2]
[385993753,1758177033357,-542.19678501,0.00023846,2]
[385993754,1758177033372,-500.0,0.00023846,2]
[385993755,1758177033382,-500.0,0.00023846,2]
[385993756,1758177033391,-154.69513376,0.00023846,2]
[385993757,1758177033400,-500.0,0.00023846,2]
[385993758,1758177033410,-500.0,0.00023846,2]
[385993759,1758177033419,-500.0,0.00023846,2]
[385993760,1758177033429,-500.0,0.00023846,2]
[385993761,1758177033438,-500.0,0.00023846,2]
[385993762,1758177033447,-500.0,0.00023846,2]
[385993763,1758177033458,-500.0,0.00023846,2]
[385993764,1758177033467,-447.09174985,0.00023846,2]
[385993765,1758177033477,-500.0,0.00023846,2]
[385993766,1758177033486,-500.0,0.00023846,2]
[385993767,1758177033496,-500.0,0.00023846,2]
[385993768,1758177033505,-500.0,0.00023846,2]
[385993769,1758177033514,-500.0,0.00023846,2]
[385993770,1758177033524,-500.0,0.00023846,2]
[385993771,1758177033533,-500.0,0.00023846,2]
[385993772,1758177033542,-548.23876892,0.00023846,2]
[385993773,1758177033551,-474.7885178,0.00023847,3]
[385993774,1758177033561,-448.88432873,0.00023847,3]
[385993775,1758177033570,-480.0,0.00023847,3]
[385993776,1758177033580,-441.52887514,0.00023847,3]
[385993777,1758177033591,-488.08330246,0.00023847,3]
[385993778,1758177033604,-480.0,0.00023847,3]
[385993779,1758177033614,-490.30451529,0.00023847,3]
[385993780,1758177033623,-488.87201841,0.00023847,3]
[385993781,1758177033633,-492.67807323,0.00023847,3]
[385993782,1758177033642,-490.41367159,0.00023847,3]
[385993783,1758177033653,-480.0,0.00023847,3]
[385993784,1758177033662,-490.69273148,0.00023847,3]
[385993785,1758177033672,-472.76194055,0.00023847,3]
[385993786,1758177033682,-476.54321987,0.00023847,3]
[385993787,1758177033691,-487.44142744,0.00023847,3]
[385993788,1758177033701,-484.09987122,0.00023847,3]
[385993789,1758177033710,-487.67045029,0.00023847,3]
[385993790,1758177033720,-484.78635262,0.00023847,3]
[385993791,1758177033730,-479.0361111,0.00023847,3]
[385993792,1758177033739,-503.02602275,0.00023847,3]
[385993793,1758177033748,-487.83814807,0.00023847,3]
[385993794,1758177033758,-480.0,0.00023847,3]
[385993795,1758177033767,-480.0,0.00023847,3]
[385993796,1758177033776,-487.52070356,0.00023847,3]
[385993797,1758177033786,-480.0,0.00023847,3]
[385993798,1758177033795,-484.51739196,0.00023847,3]
[385993799,1758177033805,-480.0,0.00023847,3]
[385993800,1758177033814,-480.0,0.00023847,3]
[385993801,1758177033823,-485.41528901,0.00023847,3]
[385993802,1758177033833,-487.72124626,0.00023847,3]
[385993803,1758177033842,-220.21823378,0.00023847,3]
[385993804,1758177033852,-480.0,0.00023847,3]
[385993805,1758177033861,-608.298061,0.00023847,3]
[385993806,1758177033871,-480.0,0.00023847,3]
[385993807,1758177033880,-487.92814871,0.00023847,3]
[385993808,1758177033890,-480.0,0.00023847,3]
[385993809,1758177033899,-483.49742517,0.00023847,3]
[385993810,1758177033909,-488.10474479,0.00023847,3]
[385993811,1758177033918,-487.39893303,0.00023847,3]
[385993812,1758177033927,-486.93942991,0.00023847,3]
[385993813,1758177033937,-487.42657539,0.00023847,3]
[385993814,1758177033946,-487.96837029,0.00023847,3]
[385993815,1758177033955,-484.28323338,0.00023847,3]
[385993816,1758177033965,-480.0,0.00023847,3]
[385993817,1758177033974,-480.0,0.00023847,3]
[385993818,1758177033984,-480.0,0.00023847,3]
[385993819,1758177033992,-480.0,0.00023847,3]
[385993820,1758177034002,-320.90016702,0.00023847,3]
[385993821,1758177034011,-488.28701947,0.00023847,3]
[385993822,1758177034021,-195.13465184,0.00023847,3]
[385993823,1758177034030,-500.0,0.00023847,3]
[385993824,1758177034039,-487.80239455,0.00023847,3]
[385993825,1758177034049,-483.91990715,0.00023847,3]
[385993826,1758177034058,-491.53775757,0.00023847,3]
[385993827,1758177034068,-490.35489901,0.00023847,3]
[385993828,1758177034077,-486.43295675,0.00023847,3]
[385993829,1758177034086,-487.495796,0.00023847,3]
[385993830,1758177034096,-504.60620323,0.00023847,3]
[385993831,1758177034107,-507.17226255,0.00023847,3]
[385993832,1758177034118,-493.97447808,0.00023847,3]
[385993833,1758177034127,-480.0,0.00023847,3]
[385993834,1758177034136,-480.0,0.00023847,3]
[385993835,1758177034147,-480.0,0.00023847,3]
[385993836,1758177034156,-500.36757232,0.00023847,3]
[385993837,1758177034166,-489.02442764,0.00023847,3]
[385993838,1758177034176,-480.0,0.00023847,3]
[385993839,1758177034186,-480.0,0.00023847,3]
[385993840,1758177034196,-486.17323519,0.00023847,3]
[385993841,1758177034205,-487.05108974,0.00023847,3]
[385993842,1758177034214,-480.0,0.00023847,3]
[385993843,1758177034224,-480.0,0.00023847,3]
[385993844,1758177034233,-480.0,0.00023847,3]
[385993845,1758177034243,-488.4366021,0.00023847,3]
[385993846,1758177034252,-500.1944636,0.00023847,3]
[385993847,1758177034261,-492.59845775,0.00023847,3]
[385993848,1758177034271,-444.10242013,0.00023847,3]
[385993849,1758177034281,-480.0,0.00023847,3]
[385993850,1758177034290,-480.0,0.00023847,3]
[385993851,1758177034299,-490.94624978,0.00023847,3]
[385993852,1758177034308,-229.00573641,0.00023847,3]
[385993853,1758177034318,-505.49821993,0.00023847,3]
[385993854,1758177034328,-498.55679437,0.00023847,3]
[385993855,1758177034337,-485.53152409,0.00023847,3]
[385993856,1758177034348,-492.18019637,0.00023847,3]
[385993857,1758177034358,-500.89913982,0.00023847,3]
[385993858,1758177034367,-484.81123469,0.00023847,3]
[385993859,1758177034377,-443.92268552,0.00023847,3]
[385993860,1758177034386,-482.70692241,0.00023847,3]
[385993861,1758177034395,-480.0,0.00023847,3]
[385993862,1758177034405,-359.36029261,0.00023847,3]
[385993863,1758177034414,-480.0,0.00023847,3]
[385993864,1758177034423,-253.00352509,0.00023847,3]
[385993865,1758177034525,-490.55754811,0.00023847,3]
[385993866,1758177034535,-485.58966937,0.00023847,3]
[385993867,1758177034544,-494.47721326,0.00023847,3]
[385993868,1758177034553,-500.0,0.00023847,3]
[385993869,1758177034563,-310.45343297,0.00023847,3]
[385993870,1758177034572,-489.68741211,0.00023847,3]
[385993871,1758177034581,-480.0,0.00023847,3]
[385993872,1758177034591,-512.65291392,0.00023847,3]
[385993873,1758177034600,-435.3232003,0.00023847,3]
[385993874,1758177034609,-528.32595358,0.00023847,3]
[385993875,1758177034618,-504.67106033,0.00023847,3]
[385993876,1758177034628,-480.0,0.00023847,3]
[385993877,1758177034637,-489.8013055,0.00023847,3]
[385993878,1758177034647,-494.14860286,0.00023847,3]
[385993879,1758177034657,-484.331738,0.00023847,3]
[385993880,1758177034666,-490.35853666,0.00023847,3]
[385993881,1758177034676,-480.0,0.00023847,3]
[385993882,1758177034685,-490.86181366,0.00023847,3]
[385993883,1758177034695,-480.0,0.00023847,3]
[385993884,1758177034704,-502.9574639,0.00023848,3]
[385993885,1758177034714,-1345.43,0.00023848,2]
[385993886,1758177034724,-246.63973432,0.00023848,2]
[385993887,1758177034733,-23166.86496075,0.00023849,2]
[385993888,1758177034746,-23088.81646906,0.00023849,2]
[385993889,1758177034758,-775.72704535,0.00023849,2]
[385993890,1758177034769,-1522.1288291,0.00023849,2]
[385993891,1758177034780,-274.18819911,0.00023849,2]
[385993892,1758177034791,-760.66583154,0.00023849,2]
[385993893,1758177034803,-333.46923112,0.00023849,2]
[385993894,1758177035487,-186.99373193,0.00023849,2]
[385993931,1758177038554,-5436.0,0.00023849,2]
[385993933,1758177038566,-1056.267044,0.00023849,2]
[385993939,1758177038613,-313398.87865804,0.00023849,2]
[385993941,1758177038622,-378.36037636,0.00023873,2]
[385993943,1758177038632,-500.0,0.00023873,2]
[385993945,1758177038641,-500.0,0.00023873,2]
[385993947,1758177038651,-488.9022319,0.00023873,2]
[385993949,1758177038661,-385.76062095,0.00023873,2]
[385993951,1758177038671,-500.0,0.00023873,2]
[385993953,1758177038680,-500.0,0.00023873,2]
[385993955,1758177038690,-500.0,0.00023873,2]
[385993957,1758177038700,-490.48329399,0.00023947,3]
[385993959,1758177038710,-529.11018936,0.00023947,2]
[385993961,1758177038719,-480.0,0.00023947,3]
[385993963,1758177038730,-487.96307943,0.00023947,3]
[385993965,1758177038739,-486.23009424,0.00023947,3]
[385993967,1758177038748,-485.14980331,0.00023947,3]
[385993969,1758177038757,-497.17789689,0.00023947,3]
[385993971,1758177038767,-486.36012853,0.00023947,3]
[385993973,1758177038776,-480.0,0.00023947,3]
[385993975,1758177038785,-480.0,0.00023947,3]
[385993977,1758177038795,-480.0,0.00023947,3]
[385993979,1758177038804,-470.11041,0.00023947,3]
[385993981,1758177038813,-518.50481975,0.00023947,3]
[385993983,1758177038822,-494.48072675,0.00023947,3]
[385993984,1758177038832,-169.28819836,0.00023973,2]
[385993987,1758177038842,-503.96400476,0.00023973,2]
[385993989,1758177038851,-500.0,0.00023973,2]
[385993990,1758177038860,-504.0000743,0.00023973,2]
[385993993,1758177038870,-501.2164168,0.00023973,2]
[385993995,1758177038879,-500.0,0.00023973,2]
[385993996,1758177038888,-503.49402217,0.00023973,2]
[385993998,1758177038898,-160.67374199,0.00023973,2]
[385994001,1758177038908,-500.0,0.00023973,2]
[385994002,1758177038918,-509.09059891,0.00023973,2]
[385994004,1758177038928,-500.0,0.00023973,2]
[385994006,1758177038937,-500.0,0.00023973,2]
[385994008,1758177038946,-100000.0,0.0002399,2]
[385994010,1758177038956,-150.0,0.00024109,2]
[385994012,1758177038966,-480.0,0.00024119,3]
[385994014,1758177038975,-484.64175443,0.00024119,3]
[385994016,1758177038984,-480.0,0.00024119,3]
[385994018,1758177038993,-480.0,0.00024119,3]
[385994020,1758177039002,-480.0,0.00024119,3]
[385994022,1758177039011,-1146.25,0.0002412,3]
[385994024,1758177039021,-490.18487589,0.0002412,3]
[385994026,1758177039031,-480.0,0.0002412,3]
[385994028,1758177039040,-480.0,0.0002412,3]
[385994030,1758177039049,-452.95999998,0.0002412,3]
[385994032,1758177039059,-480.0,0.0002412,3]
[385994034,1758177039068,-480.0,0.0002412,3]
[385994036,1758177039077,-2927.8,0.0002412,3]
[385994038,1758177039087,-480.0,0.0002412,3]
[385994040,1758177039096,-262.53308378,0.0002412,3]
[385994042,1758177039106,-480.0,0.0002412,3]
[385994044,1758177039118,-480.0,0.0002412,3]
[385994046,1758177039127,-347.89,0.00024121,3]
[385994048,1758177039136,-505.32224837,0.00024121,3]
[385994050,1758177039145,-520.27748976,0.00024121,3]
[385994052,1758177039155,-486.9612711,0.00024121,3]
[385994054,1758177039164,-476.64041548,0.00024121,3]
[385994056,1758177039174,-504.25752972,0.00024121,3]
[385994058,1758177039184,-481.16,0.00024121,3]
[385994060,1758177039193,-514.62,0.00024121,3]
[385994062,1758177039202,-486.30101872,0.00024121,3]
[385994064,1758177039211,-480.0,0.00024121,3]
[385994066,1758177039220,-480.0,0.00024121,3]
[385994068,1758177039229,-495.68204867,0.00024221,3]
[385994070,1758177039239,-502.36929089,0.00024221,3]
[385994072,1758177039248,-492.24766115,0.00024221,3]
[385994074,1758177039258,-480.0,0.00024393,3]
[385994076,1758177039268,-480.0,0.00024393,3]
[385994078,1758177039278,-1146.25,0.00024394,3]
[385994080,1758177039288,-480.0,0.00024394,3]
[385994082,1758177039298,-2927.8,0.00024394,3]
[385994084,1758177039307,-480.0,0.00024394,3]
[385994086,1758177039318,-480.0,0.00024394,3]
[385994088,1758177039327,-596.86113274,0.00024395,3]
[385994090,1758177039338,-1000.0,0.00024421,2]
[385994092,1758177039348,-1090.01102934,0.00024421,2]
[385994094,1758177039357,-1109.36641102,0.00024421,2]
[385994096,1758177039367,-2191.7160245,0.00024479,2]
[385994098,1758177039375,-583.32234658,0.00024521,2]
[385994100,1758177039385,-226.75007981,0.00024521,2]
[385994102,1758177039395,-1000.0,0.00024521,2]
[385994104,1758177039405,-1000.0,0.00024521,2]
[385994106,1758177039415,-387.09696802,0.00024521,2]
[385994108,1758177039425,-160.0,0.00024632,2]
[385994110,1758177039435,-160.0,0.00024632,2]
[385994112,1758177039444,-160.0,0.00024632,2]
[385994114,1758177039454,-160.0,0.00024632,2]
[385994116,1758177039463,-160.0,0.00024632,2]
[385994118,1758177039472,-160.0,0.00024632,2]
[385994120,1758177039483,-160.0,0.00024632,2]
[385994122,1758177039492,-160.0,0.00024632,2]
[385994124,1758177039502,-160.0,0.00024638,2]
[385994126,1758177039513,-151.0,0.00024658,2]
[385994128,1758177039524,-480.0,0.00024667,3]
[385994130,1758177039533,-1146.25,0.00024668,3]
[385994132,1758177039543,-480.0,0.00024668,3]
[385994134,1758177039553,-2927.8,0.00024668,3]
[385994136,1758177039562,-206.57162636,0.00024668,3]
[385994138,1758177039572,-480.0,0.00024668,3]
[385994140,1758177039581,-1400.0,0.00024712,2]
[385994142,1758177039592,-504.1962342,0.00024729,2]
[385994144,1758177039601,-172.687,0.00024867,8]
[385994146,1758177039611,-160.0,0.00024867,2]
[385994148,1758177039621,-500.0,0.00024873,2]
[385994150,1758177039630,-208.95138403,0.00024873,2]
[385994152,1758177039640,-151.23981477,0.00024873,2]
[385994154,1758177039650,-160.0,0.00024885,3]
[385994156,1758177039660,-217.059195,0.000249,7]
[385994158,1758177039670,-217.059195,0.000249,7]
[385994160,1758177039685,-217.059195,0.000249,7]
[385994162,1758177039696,-217.059195,0.000249,7]
[385994164,1758177039706,-427.10351444,0.00024923,2]
[385994167,1758177039719,-410.0,0.00024925,2]
[385994169,1758177039729,-480.0,0.00024941,3]
[385994171,1758177039738,-1146.25,0.00024942,3]
[385994173,1758177039747,-480.0,0.00024942,3]
[385994175,1758177039758,-2927.8,0.00024942,3]
[385994177,1758177039768,-480.0,0.00024942,3]
[385994179,1758177039777,-1847.0,0.00024967,2]
[385994181,1758177039786,-308.64117626,0.00024968,2]
[385994183,1758177039796,-154.02488393,0.00025,2]
[385994185,1758177039805,-417.15472785,0.00025,10]
[385994187,1758177039815,-1004.39866036,0.00025068,2]
[385994189,1758177039824,-591.07030662,0.00025068,2]
[385994191,1758177039834,-315.0,0.00025096,15]
[385994193,1758177039844,-500.0,0.000251,2]
[385994195,1758177039855,-501.46379598,0.000251,2]
[385994197,1758177039864,-500.0,0.000251,2]
[385994199,1758177039874,-503.93477338,0.000251,2]
[385994201,1758177039886,-501.07766424,0.000251,2]
[385994203,1758177039895,-522.52390626,0.000251,2]
[385994205,1758177039905,-265.17340167,0.000251,2]
[385994206,1758177039914,-501.95474255,0.000251,2]
[385994208,1758177039923,-500.0,0.000251,2]
[385994210,1758177039932,-500.0,0.000251,2]
[385994212,1758177039942,-500.27621588,0.000251,2]
[385994214,1758177039951,-160.89732276,0.000251,2]
[385994217,1758177039960,-480.0,0.00025215,3]
[385994219,1758177039970,-1146.25,0.00025216,3]
[385994221,1758177039979,-480.0,0.00025216,3]
[385994223,1758177039988,-2927.8,0.00025216,3]
[385994225,1758177039998,-480.0,0.00025216,3]
[385994227,1758177040007,-260.0,0.00025415,2]
[385994229,1758177040016,-1000.0,0.00025421,2]
[385994230,1758177040026,-480.0,0.00025489,3]
[385994233,1758177040035,-1146.25,0.0002549,3]
[385994235,1758177040044,-480.0,0.0002549,3]
[385994237,1758177040054,-2927.8,0.0002549,3]
[385994239,1758177040063,-480.0,0.0002549,3]
[385994241,1758177040072,-4286.5418086,0.00025494,2]
[385994243,1758177040081,-1443.57769,0.00025494,2]
[385994245,1758177040090,-163.75187288,0.00025558,2]
[385994247,1758177040099,-1000.0,0.00025648,2]
[385994248,1758177040111,-1003.94153345,0.00025648,2]
[385994251,1758177040120,-1000.0,0.00025648,2]
[385994254,1758177040129,-480.0,0.00025763,3]
[385994256,1758177040139,-1146.25,0.00025764,3]
[385994258,1758177040149,-480.0,0.00025764,3]
[385994260,1758177040158,-2927.8,0.00025764,3]
[385994262,1758177040168,-480.0,0.00025764,3]
[385994264,1758177040177,-11957.18192104,0.000258,2]
[385994266,1758177040188,-166.0,0.000258,3]
[385994269,1758177040198,-166.0,0.000258,3]
[385994272,1758177040207,-151.0,0.000258,3]
[385994274,1758177040217,-151.0,0.000258,3]
[385994276,1758177040226,-152.92581206,0.000258,3]
[385994278,1758177040236,-1400.0,0.00025808,2]
[385994279,1758177040245,-420.0,0.00025862,2]
[385994281,1758177040254,-160.0,0.00025893,4]
[385994283,1758177040264,-360.0,0.00025963,2]
[385994285,1758177040273,-1500.0,0.00025968,2]
[385994287,1758177040282,-271.0,0.00025979,2]
[385994289,1758177040292,-490.04,0.00026,7]
[385994291,1758177040302,-480.0,0.00026037,3]
[385994293,1758177040311,-1146.25,0.00026038,3]
[385994295,1758177040320,-480.0,0.00026038,3]
[385994297,1758177040330,-2927.8,0.00026038,3]
[385994299,1758177040340,-480.0,0.00026038,3]
[385994300,1758177040350,-168.0,0.00026163,2]
[385994302,1758177040359,-1020.56051673,0.00026196,2]
[385994304,1758177040368,-733.82248698,0.00026196,2]
[385994306,1758177040377,-30000.0,0.000263,2]
[385994308,1758177040387,-480.0,0.00026311,3]
[385994310,1758177040396,-1146.25,0.00026312,3]
[385994312,1758177040405,-480.0,0.00026312,3]
[385994314,1758177040414,-2927.8,0.00026312,3]
[385994316,1758177040424,-480.0,0.00026312,3]
[385994318,1758177040432,-168.0,0.00026418,2]
[385994319,1758177040442,-36082.3664835,0.0002643,7]
[385994321,1758177040452,-151.0,0.0002643,7]
[385994323,1758177040461,-151.0,0.0002643,7]
[385994325,1758177040471,-213445.96934296,0.0002644,2]
[385994328,1758177040486,-1930.171218,0.0002644,2]
[385994373,1758177040950,-0.00952929,0.0002644,2]
[385994375,1758177040961,-1784.4053796,0.0002644,2]
[385994377,1758177040972,-5901.8212943,0.0002644,2]
[385994379,1758177040983,-433.33155169,0.0002644,2]
[385994647,1758177043859,-36557.70290373,0.0002644,2]
[385994649,1758177043871,-452.95999998,0.0002644,2]
[385994660,1758177043978,-1931.63524533,0.0002644,2]
[385996280,1758177060736,-206.18632052,0.00023845,3]
[385996825,1758177066410,-88.88248104,0.00023845,3]
[385996829,1758177066441,-201.25368305,0.00023846,3]
[385997122,1758177069599,-244.6084825,0.00023846,3]
[385997619,1758177075567,-222.77783445,0.00023846,3]
[385997620,1758177075595,-136.93778606,0.00024109,2]
[385997715,1758177077707,-107.27818871,0.00024109,2]
[385997716,1758177077738,-165.79120564,0.0002412,3]
[385997717,1758177082718,-159.77886994,0.00023846,3]
[385997718,1758177082750,-179.96773178,0.0002412,3]
[385997719,1758177084743,-176.11451441,0.0002412,3]
[385997720,1758177090092,-146.76654817,0.0002412,3]
[385997721,1758177090125,-45.53817981,0.00024394,3]
[385997722,1758177092792,-300.45503107,0.00024394,3]
[385997723,1758177097555,-292.70482761,0.00024394,3]
[385997724,1758177101550,-480.0,0.00023846,3]
[385997725,1758177101577,-480.0,0.0002412,3]
[385997726,1758177101792,-29.94196151,0.00024394,3]
[385997727,1758177101820,-480.0,0.00024394,3]
[385997728,1758177101844,-571.852392,0.00024537,2]
[385997729,1758177101871,-668.64,0.00024668,3]
[385997730,1758177101898,-480.0,0.00024668,3]
[385997731,1758177101921,-1200.0,0.00024712,2]
[385997732,1758177101947,-668.64,0.00024942,3]
[385997733,1758177101975,-526.3796049,0.00024942,3]
[385997734,1758177101999,-981.328,0.00025089,2]
[385997735,1758177102027,-228.63201641,0.00025089,2]
[385997736,1758177106159,-181.36798359,0.00025089,2]
[385997737,1758177106187,-40.67839065,0.00025216,3]
[385997738,1758177107883,-168.5724761,0.00025216,3]
[385997739,1758177109599,-295.02508972,0.00025216,3]
[385997740,1758177114008,-164.36404353,0.00025216,3]
[385997741,1758177114406,36.20371319,0.00025089,2]
[385997742,1758177115705,-368.78699958,0.00025089,2]
[385997746,1758177228543,150.0,0.00030344,120]
[385997747,1758177246049,-161.14546077,0.00023341,2]
[385997748,1758177249283,-165.04089769,0.00023341,2]
[385997749,1758177251567,-293.88923602,0.00023341,2]
[385997750,1758177254898,-309.12184833,0.00023341,2]
[385997751,1758177259189,-203.4359139,0.00023341,2]
[385997752,1758177261818,-191.12758996,0.00023341,2]
[385997753,1758177266785,-313.32220658,0.00023341,2]
[385997754,1758177271650,-239.46123868,0.00023341,2]
[385997755,1758177274463,-229.81935673,0.00023341,2]
[385997756,1758177280085,-455.48778367,0.00023341,2]
[385997757,1758177286943,-163.9923941,0.00023341,2]
[385997758,1758177290787,-267.50295405,0.00023341,2]
[385997759,1758177297400,-214.33588317,0.00023341,2]
[385997760,1758177300647,-440.49561061,0.00023341,2]
[385997761,1758177302504,-179.93467193,0.0002334,2]
[385997762,1758177330238,-120.06532807,0.0002334,2]
[385997763,1758177330265,-31.95172587,0.0002334,2]
[385997764,1758177373270,-237.8870396,0.0002334,2]
[385997765,1758177398506,-209.6141208,0.0002334,2]
[385997766,1758177419679,420.299907,0.00022753,2]
[385997767,1758177493184,-236.6671919,0.0002334,2]
[385997768,1758177530631,666.0,0.00022728,2]
[385997769,1758177538289,-329.1108906,0.0002334,2]
[385997770,1758177616500,1000.0,0.00028,30]
[385997771,1758177637803,1361.8398801,0.00022728,2]
[385997772,1758177659519,-173.02941,0.0002334,2]
[385997779,1758177694724,243.8959719,0.00022746,2]
[385997780,1758177804215,193.86408504,0.0002264,2]
[385997781,1758177868097,158.0,8.3e-07,2]
[385997782,1758177869127,158.0,8.3e-07,2]
[385997783,1758177870161,158.0,8.3e-07,2]
[385997784,1758177871203,158.0,8.3e-07,2]
[385997785,1758177872412,158.0,8.3e-07,2]
[385997786,1758177873299,158.0,8.3e-07,2]
[385997787,1758177874337,158.0,8.3e-07,2]
[385997788,1758177972158,386.44637076,0.00030345,120]
[385997789,1758178065702,209.6798414,0.00022845,2]
[385997790,1758178197469,460.092561,0.00022626,2]
[385997791,1758178213001,433.4497665,0.00022677,2]
[385997828,1758178231838,-1064.15662766,0.0002334,2]
[385997829,1758178231871,-135.84337234,0.0002334,2]
[385997830,1758178231881,-300.0,0.0002334,2]
[385997831,1758178231891,-300.0,0.0002334,2]
[385997832,1758178231900,-1200.0,0.0002334,2]
[385997833,1758178231911,-9857.12076584,0.00023341,2]
[385997834,1758178231921,-153.13665152,0.00023645,2]
[385997835,1758178231931,-190.48565739,0.00023646,2]
[385997836,1758178231941,-39365.21501862,0.00023745,2]
[385997869,1758178237779,-4172.92624095,0.00023745,2]
[385997871,1758178237906,-5685.82867541,0.00023745,2]
[385997872,1758178237916,-835.81,0.00023745,3]
[385997873,1758178237926,-480.0,0.00023745,3]
[385997874,1758178237935,-484.38,0.00023745,3]
[385997875,1758178237945,-2561.83,0.00023745,3]
[385997876,1758178237955,-206.57162636,0.00023745,3]
[385997877,1758178237964,-480.0,0.00023745,3]
[385997878,1758178237973,-480.0,0.00023745,3]
[385997879,1758178237982,-1289.82,0.00023746,2]
[385997880,1758178237992,-2010.56,0.00023746,2]
[385997881,1758178238001,-2010.56,0.00023746,2]
[385997882,1758178238010,-2010.56,0.00023746,2]
[385997883,1758178238019,-2010.56,0.00023746,2]
[385997884,1758178238028,-2010.56,0.00023746,2]
[385997885,1758178238038,-2010.56,0.00023746,2]
[385997886,1758178238047,-2010.56,0.00023746,2]
[385997887,1758178238056,-2010.56,0.00023746,2]
[385997888,1758178238065,-2010.56,0.00023746,2]
[385997889,1758178238074,-2010.56,0.00023746,2]
[385997890,1758178238083,-2010.56,0.00023746,2]
[385997891,1758178238093,-2010.56,0.00023746,2]
[385997892,1758178238102,-2010.56,0.00023746,2]
[385997893,1758178238112,-2010.56,0.00023746,2]
[385997894,1758178238123,-2010.56,0.00023746,2]
[385997895,1758178238133,-2010.56,0.00023746,2]
[385997896,1758178238142,-2010.56,0.00023746,2]
[385997897,1758178238153,-2010.56,0.00023746,2]
[385997898,1758178238162,-2010.56,0.00023746,2]
[385997899,1758178238172,-2010.56,0.00023746,2]
[385997900,1758178238181,-2010.56,0.00023746,2]
[385997901,1758178238191,-2010.56,0.00023746,2]
[385997902,1758178238202,-2010.56,0.00023746,2]
[385997903,1758178238218,-120.8504966,0.00023746,2]
[385997904,1758178238231,-531.89502363,0.00023746,2]
[385997905,1758178238243,-717.12731951,0.00023746,2]
[385997906,1758178238254,-640.80976227,0.00023746,2]
[385997907,1758178238263,-172.64781402,0.00023746,2]
[385997908,1758178238272,-763.91644655,0.00023747,2]
[385997909,1758178238283,-7781.35930984,0.00023747,2]
[385997910,1758178238294,-4969.68896361,0.00023747,2]
[385997911,1758178238305,-568.88,0.00023747,2]
[385997916,1758178240395,-0.00221091,0.00023745,2]
[385997932,1758178243111,-455.62852388,0.00023745,2]
[385997933,1758178243124,-149.60168186,0.00023745,2]
[385997934,1758178243134,-171.35519833,0.00023745,2]
[385997935,1758178243144,-500.0,0.00023745,2]
[385997936,1758178243155,-283.13764099,0.00023745,2]
[385997937,1758178243165,-531.26981484,0.00023745,2]
[385997938,1758178243175,-500.0,0.00023745,2]
[385997939,1758178243185,-500.0,0.00023745,2]
[385997940,1758178243195,-7.1778126,0.00023745,2]
[385997961,1758178245830,-484.38,0.00023745,2]
[385997977,1758178251216,-8.4421874,0.00023745,2]
[385997978,1758178251226,-500.0,0.00023745,2]
[385997979,1758178251235,-500.0,0.00023745,2]
[385997980,1758178251244,-500.0,0.00023745,2]
[385997981,1758178251255,-355916.15528,0.00023747,2]
[385997982,1758178251265,-500.0,0.00023773,2]
[385997983,1758178251275,-500.0,0.00023773,2]
[385997984,1758178251284,-500.0,0.00023773,2]
[385997985,1758178251295,-500.0,0.00023773,2]
[385997986,1758178251306,-500.0,0.00023773,2]